Cogmind - Beta 17 @@@ ROGUE MODE // 2026.08.25 @ 19:49:12 Player: Niamak Result: Destroyed by as-66712 with Assembled Blade Performance ------------- Evolutions (0) 0 Regions Visited (4) 800 Robots Destroyed (9) 45 Value Destroyed (226) 226 Prototype IDs (25) 500 Alien Tech Used (0) 0 Bonus (300) 300 TOTAL SCORE: 1871 Bonus ------- Aligned with FarCom 300 Cogmind --------- Core Integrity 0/250 Matter 300/300 Energy 100/100 System Corruption 0% Temperature Cool (4) Movement Flying (40) Location -9/Mines Parts ------- > --- POWER (1) -------- (None) > --- PROPULSION (2) --- Flight Unit > --- UTILITY (2) ------ Small Storage Unit Weight Redist. System > --- WEAPON (2) ------- (None) > --- INVENTORY (8) ---- Light Ion Engine Light Treads Structural Scanner Sensor Array Terrain Scan Processor Small Laser Longsword +1 Peak State ------------ > --- POWER ------------ Light Ion Engine > --- PROPULSION ------- Flight Unit Flight Unit > --- UTILITY ---------- Small Storage Unit Weight Redist. System > --- WEAPON ----------- Longsword +1 > --- INVENTORY -------- Light Ion Engine Light Treads Structural Scanner Sensor Array Terrain Scan Processor Small Laser [Rating: 14] Favorites ----------- Power Light Ion Engine Engine Light Ion Engine Propulsion Light Treads Treads Light Treads Flight Unit Flight Unit Utility Small Storage Unit Device Seismic Detector Storage Small Storage Unit Weapon Light Assault Rifle Energy Gun EM Pulse Gun Energy Cannon Beam Cannon Ballistic Gun Light Assault Rifle Slashing Weapon Longsword +1 Build | -11 -10 -10 -10 -9 ------- Run | Yrd Mat Min Exi Min Slots Evolved . | . . . . . Power . | . . . . . Propulsion . | . . . . . Utility . | . . . . . Weapon . | . . . . . Parts Attached 13 | 6 5 . . 2 Power 1 | . 1 . . . Engine 1 | . 1 . . . Core . | . . . . . Reactor . | . . . . . Propulsion 4 | 2 2 . . . Treads 2 | 2 . . . . Leg . | . . . . . Wheel . | . . . . . Hover . | . . . . . Flight 2 | . 2 . . . Utility 4 | 2 1 . . 1 Device 3 | 1 1 . . 1 Storage 1 | 1 . . . . Processor . | . . . . . Hackware . | . . . . . Protection . | . . . . . Artifact . | . . . . . Weapon 4 | 2 1 . . 1 Energy Gun 1 | 1 . . . . Energy Cannon 1 | . 1 . . . Ballistic Gun 1 | 1 . . . . Ballistic Cannon . | . . . . . Launcher . | . . . . . Special Weapon . | . . . . . Impact Weapon . | . . . . . Slashing Weapon 1 | . . . . 1 Piercing Weapon . | . . . . . Special Melee Weapon . | . . . . . Unidentified Prototypes . | . . . . . Parts Lost 5 | . 3 . . 2 Power 1 | . . . . 1 Propulsion 2 | . 1 . . 1 Utility 1 | . 1 . . . Weapon 1 | . 1 . . . Highest Loss Streak 2 | . 2 . . 2 To Critical Strikes . | . . . . . Average Backups 5 | 2 5 5 5 7 Power 1 | 1 2 2 2 1 Propulsion . | . 1 1 1 1 Utility 1 | . 1 1 1 3 Weapon 1 | 1 1 1 1 1 Tool/Special . | . . . . . Unused Backups 4 | . . . . 4 Power 1 | . . . . 1 Propulsion . | . . . . . Utility 2 | . . . . 2 Weapon 1 | . . . . 1 Tool/Special . | . . . . . Average Slot Usage (%) 70 | . 78 57 57 62 Treads 11 | . 22 . . . Flight 15 | . 4 28 28 27 Device 11 | . 13 14 14 4 Storage 14 | . 14 14 14 14 Energy Gun 4 | . 8 . . . Energy Cannon 1 | . 3 . . . Ballistic Gun 6 | . 11 . . . Slashing Weapon 3 | . . . . 11 Peak Build Rating 14 | 6 6 4 5 14 Average Rating 6 | 4 5 4 4 11 On Entrance 3 | . 6 4 4 5 Avg Prop Armor Cover (%) . | . . . . . Naked Turns . | . . . . . Heaviest Build 11 | 9 10 6 6 11 Greatest Support 40 | 40 40 8 8 14 Greatest Overweight (x) 1 | 1 . . . 1 Average Overweight (x) . | . . . . . Largest Inventory Capacity 8 | 8 8 8 8 8 Average Capacity 7 | 7 8 8 8 8 Most Carried 8 | 4 8 5 6 8 Average Carried 5 | 2 5 5 5 7 Final Capacity 8 | 8 8 8 8 8 Final Carried 7 | 3 5 5 6 7 Class Distribution -------------------- 100% | Mutant Dominant Class ---------------- Mutant | -10/Materials Mutant | -10/Mines Mutant | -10/Exiles Mutant | -9/Mines Resources | -11 -10 -10 -10 -9 ----------- Run | Yrd Mat Min Exi Min Matter Collected 371 | 243 92 . . 36 Remotely . | . . . . . Salvage Created 355 | 22 260 . . 73 Parts 19 | 4 15 . . . Haulers Intercepted . | . . . . . Recyclers Shooed . | . . . . . Parts Field Recycled . | . . . . . Retrieved Matter . | . . . . . Parts Self-Destructed . | . . . . . Prevented . | . . . . . Parts Restored . | . . . . . Kills | -11 -10 -10 -10 -9 ------- Run | Yrd Mat Min Exi Min Combat Hostiles Destroyed 12 | . 7 . . 5 Melee 5 | . . . . 5 Guns 4 | . 4 . . . Cannons 3 | . 3 . . . Classes Destroyed 5 | 1 3 . . 1 Tunneler 1 | 1 . . . . Watcher 1 | . 1 . . . Swarmer 2 | . 2 . . . Grunt 5 | . 5 . . . Assembled 5 | . . . . 5 Best Kill Streak 5 | 1 4 . . 5 Combat Bots Only 5 | . 3 . . 5 Max Kills in Single Turn 1 | 1 1 . . 1 Gunslinging . | . . . . . Exploded . | . . . . . Melee 1 | . . . . 1 Uniques/NPCs Destroyed . | . . . . . Combat | -11 -10 -10 -10 -9 -------- Run | Yrd Mat Min Exi Min Hostile Shots Fired 97 | . 72 8 . 17 Missed 31 | . 20 5 . 6 Hits 66 | . 52 3 . 11 Melee 3 | . . . . 3 Projectile 63 | . 52 3 . 8 Critical Strikes 2 | . 2 . . . Part Disruptions 1 | . . . . 1 Damage Taken 874 | . 629 34 . 211 Core 282 | . 154 34 . 94 Absorbed by Shields . | . . . . . Core Remaining (%) 100 | 100 . . . . Volleys Fired 48 | 6 42 . . . Largest 2 | 2 2 . . . Hottest 80 | 60 80 . . . Shots Fired 86 | 12 74 . . . Gun 65 | 12 53 . . . Cannon 21 | . 21 . . . Launcher . | . . . . . Special . | . . . . . Kinetic 48 | 6 42 . . . Thermal 21 | . 21 . . . Explosive . | . . . . . Electromagnetic 17 | 6 11 . . . Robot Hit Streak 15 | 3 15 . . . Robot Miss Streak 5 | 1 5 . . . Penetration Max . | . . . . . Secondary Targets 2 | . 2 . . . Max Gunslinging Chain 1 | . 1 . . . Shots Hit Robots 61 | 7 46 . . 8 Core Hits 21 | 3 15 . . 3 Critical Kills . | . . . . . Critical Parts Destroyed . | . . . . . Critical Strikes . | . . . . . Melee Attacks 9 | . . . . 9 Impact . | . . . . . Slashing 9 | . . . . 9 Piercing . | . . . . . Sneak Attacks 2 | . . . . 2 Combat Hostiles 1 | . . . . 1 Follow-up Attacks . | . . . . . Damage Inflicted 1161 | 43 511 . . 607 Guns 311 | 43 268 . . . Cannons 243 | . 243 . . . Explosions . | . . . . . Melee 607 | . . . . 607 Ramming . | . . . . . Kinetic 251 | 30 221 . . . Thermal 243 | . 243 . . . Explosive . | . . . . . Electromagnetic 60 | 13 47 . . . Impact . | . . . . . Slashing 607 | . . . . 607 Piercing . | . . . . . Highest Corruption . | . . . . . Average Corruption . | . . . . . Corruption Purged . | . . . . . Corruption Blocked . | . . . . . Overload Shots . | . . . . . Overflow Damage 142 | . . . . 142 Projectiles . | . . . . . Explosions . | . . . . . Melee 142 | . . . . 142 Knockbacks . | . . . . . Impact . | . . . . . Kinetic . | . . . . . Secondary . | . . . . . Self-Inflicted Damage . | . . . . . Shots . | . . . . . Rammed . | . . . . . Targets Rammed . | . . . . . Kicked . | . . . . . Crushed . | . . . . . Highest Temperature 241 | 10 241 . . 4 Average Temperature 84 | 7 93 . . 4 Received Heat Transfer 373 | . 324 9 . 40 Effects 2 | . 2 . . . Energy Bleed 1 | . 1 . . . Interference 1 | . 1 . . . Siege Activations . | . . . . . Martial Activations . | . . . . . Shielding Activations . | . . . . . Robots Disrupted . | . . . . . Combat Hostiles . | . . . . . Robots Corrupted . | . . . . . Combat Hostiles . | . . . . . Parts Fried . | . . . . . Impact Corruptions . | . . . . . Robots Melted . | . . . . . Combat Hostiles . | . . . . . Parts Melted 1 | . 1 . . . Heat Transferred 518 | . 518 . . . Parts Sabotaged . | . . . . . Parts Stolen . | . . . . . Parts Stripped . | . . . . . Power Chain Reactions . | . . . . . Alert | -11 -10 -10 -10 -9 ------- Run | Yrd Mat Min Exi Min Maximum Alert Level . | . . . . . Low Security (%) 100 | 100 100 100 . 100 Level 1 . | . . . . . Level 2 . | . . . . . Level 3 . | . . . . . Level 4 . | . . . . . Level 5 . | . . . . . High Security . | . . . . . Max Security . | . . . . . Peak Influence 50 | 5 50 48 . . Initial 13 | . . 13 . . Average 11 | . 20 18 . . Influence Increases 294 | 5 214 75 . . Destroy 0b10 Robot/C 140 | . 140 . . . Destroy 0b10 Robot/NC 10 | 5 5 . . . Destroy Leader 32 | . 32 . . . Successful Hack 22 | . 22 . . . Lose Combat Pursuer 90 | . 15 75 . . Influence Decreases 294 | 5 178 33 78 . Entered New Map 101 | . . 23 78 . Time Decay 163 | 5 148 10 . . Lost Part 30 | . 30 . . . Squads Dispatched 1 | . 1 . . . Investigation 1 | . 1 . . . Extermination . | . . . . . Reinforcement . | . . . . . Assault . | . . . . . Garrison . | . . . . . Intercept . | . . . . . Searches Triggered . | . . . . . Construction Impeded . | . . . . . Haulers Reinforced . | . . . . . Active Scanning Responses . | . . . . . Cargo Convoy Interrupts . | . . . . . Stealth | -11 -10 -10 -10 -9 --------- Run | Yrd Mat Min Exi Min Distress Signals . | . . . . . Communications Jammed . | . . . . . Distress Signals . | . . . . . Times Spotted 36 | . 12 6 . 18 Peak Tracking Total 8 | . 4 5 . 8 Tactical Retreats 4 | . 1 1 . 2 Traps | -11 -10 -10 -10 -9 ------- Run | Yrd Mat Min Exi Min Traps Triggered 1 | . 1 . . . Indirectly . | . . . . . Trap Hack Attempts . | . . . . . Triggered . | . . . . . Disarmed . | . . . . . Reprogrammed . | . . . . . Reused . | . . . . . Traps Extracted . | . . . . . Installed . | . . . . . Triggered . | . . . . . Machines | -11 -10 -10 -10 -9 ---------- Run | Yrd Mat Min Exi Min Machines Disabled . | . . . . . Max in Single Turn . | . . . . . Machines Repaired . | . . . . . Machines Dismantled . | . . . . . Machines Sabotaged . | . . . . . Overloaded Fab Kills . | . . . . . Hacking | -11 -10 -10 -10 -9 --------- Run | Yrd Mat Min Exi Min Machines Accessed 6 | . 5 . 1 . Terminals 5 | . 5 . . . Fabricators . | . . . . . Repair Stations . | . . . . . Recycling Units . | . . . . . Scanalyzers . | . . . . . Garrison Access . | . . . . . Total Hacks 11 | . 10 . 1 . Successful 8 | . 7 . 1 . Failed 3 | . 3 . . . Catastrophic . | . . . . . Database Lockouts . | . . . . . Manual 2 | . 1 . 1 . Terminals 10 | . 10 . . . Fabricators . | . . . . . Repair Stations . | . . . . . Recycling Units . | . . . . . Scanalyzers . | . . . . . Garrison Access . | . . . . . Terminal Hacks 8 | . 7 . 1 . Prototype ID Bank 1 | . 1 . . . Level Access Points 1 | . 1 . . . Branch Access Points 1 | . 1 . . . Terminal Index 1 | . 1 . . . Alert Level 1 | . 1 . . . Locate Traps 1 | . 1 . . . Zone Layout 1 | . 1 . . . Proto ID Catalog 1 | . . . 1 . Fabricator Hacks . | . . . . . Repair Station Hacks . | . . . . . Recycling Unit Hacks . | . . . . . Scanalyzer . | . . . . . Garrison Access Hacks . | . . . . . Unauthorized Hacks . | . . . . . Terminals . | . . . . . Fabricators . | . . . . . Repair Stations . | . . . . . Recycling Units . | . . . . . Scanalyzers . | . . . . . Garrison Access . | . . . . . Data Cores Recovered . | . . . . . Used . | . . . . . Hacking Detections 4 | . 4 . . . Full Trace Events . | . . . . . Feedback Events . | . . . . . Feedback Blocked . | . . . . . Robot Schematics Acquired . | . . . . . Robots Built . | . . . . . Authchips . | . . . . . Time . | . . . . . Total Robot Build Rating . | . . . . . Part Schematics Acquired . | . . . . . Parts Built . | . . . . . Authchips . | . . . . . Time . | . . . . . Total Part Build Rating . | . . . . . Part Studies Acquired . | . . . . . Parts Repaired . | . . . . . Time . | . . . . . Parts Recycled . | . . . . . Recycled Matter . | . . . . . Retrieved Matter . | . . . . . Retrieved Components . | . . . . . Parts Scanalyzed . | . . . . . Part Schematics Acquired . | . . . . . Parts Damaged . | . . . . . Bothacking | -11 -10 -10 -10 -9 ------------ Run | Yrd Mat Min Exi Min Used RIF Installer . | . . . . . Robots Hacked . | . . . . . Non-combat . | . . . . . Combat . | . . . . . Robot Hacks Applied . | . . . . . Relay Couplers Released . | . . . . . Fabnet Peak Effective % . | . . . . . Robots Rewired . | . . . . . Allies Hacked . | . . . . . Hacks Repelled . | . . . . . Allies | -11 -10 -10 -10 -9 -------- Run | Yrd Mat Min Exi Min Total Allies . | . . . . . Largest Group . | . . . . . Highest-Rated Group . | . . . . . Highest-Rated Ally . | . . . . . Total Orders . | . . . . . Ally Attacks . | . . . . . Total Damage . | . . . . . Kills . | . . . . . Allies Corrupted . | . . . . . Allies Melted . | . . . . . Intel | -11 -10 -10 -10 -9 ------- Run | Yrd Mat Min Exi Min Active Infowar (turns) 525 | 31 361 27 98 8 Structural 194 | . 61 27 98 8 Seismic 331 | 31 300 . . . Robot Analysis Total . | . . . . . Derelict Logs Recovered 1 | . . . . 1 Drone Launches . | . . . . . Drone Recoveries . | . . . . . Exploration | -11 -10 -10 -10 -9 ------------- Run | Yrd Mat Min Exi Min Turns Passed 818 | 114 385 27 98 194 Spaces Moved 1125 | 52 287 72 263 451 Core 6 | 6 . . . . Treads 175 | 46 129 . . . Legs . | . . . . . Wheels . | . . . . . Hover . | . . . . . Flight 944 | . 158 72 263 451 Fastest Speed 37 | 50 37 37 37 37 Average Speed 56 | 148 92 37 37 37 Slowest Speed 160 | 160 160 37 37 120 Overloaded Moves . | . . . . . Propulsion Burnouts . | . . . . . Robots Hopped 1 | . . . . 1 Potential Cave-ins . | . . . . . Cave-ins Triggered . | . . . . . Exploration Rate (%) 43 | 4 49 30 62 73 Regions Visited 4 Branch Regions 3 Pre-discovered Areas . | . . . . . Known Exits Taken 1 | . 1 . . . Unknown Exits Taken 3 | 1 . 1 1 . Scrap Searched 2 | . . . . 2 Spaces Dug . | . . . . . Terrain Destroyed . | . . . . . Melee . | . . . . . Projectile . | . . . . . AOE . | . . . . . Terrain Rammed . | . . . . . Walls Destroyed . | . . . . . Machines Disabled . | . . . . . Actions | -11 -10 -10 -10 -9 --------- Run | Yrd Mat Min Exi Min Total 1219 | 78 341 71 263 466 Wait 6 | 6 . . . . Move 1119 | 51 286 71 262 449 Hop 1 | . . . . 1 Pick Up 17 | 9 5 . 1 2 Fast Attach . | . . . . . Attach 13 | 6 4 . . 3 Detach 3 | . 1 . . 2 Swap 1 | . 1 . . . Drop 2 | . 2 . . . Fire 48 | 6 42 . . . Melee 9 | . . . . 9 Ram . | . . . . . Kick . | . . . . . Crush . | . . . . . Escape Stasis . | . . . . . Rewire . | . . . . . Trap . | . . . . . Miscellaneous . | . . . . . Route ------- -11/Scrapyard -10/Materials (discovered 4 exits: *Mat x3 / *Min) -10/Mines -10/Exiles -9/Mines History --------- Turn | Location | Event 18 | -11/Scrapyard | Discovered new exit (range 16) 115 | -11/Scrapyard | Entered Materials 125 | -10/Materials | Identified exit to Mines 255 | -10/Materials | Identified exit to Materials 306 | -10/Materials | Build established: Mutant 414 | -10/Materials | Core integrity fell below 50% 500 | -10/Materials | Entered Mines 501 | -10/Mines | Met a Derelict bent on vengeance 525 | -10/Mines | Deemed a non-threat by the Exiles lab entrance 525 | -10/Mines | Discovered new exit (range 5) 527 | -10/Mines | Entered Exiles 536 | -10/Exiles | Met 8R-AWN 543 | -10/Exiles | Met EX-HEX 554 | -10/Exiles | Met EX-BIN 573 | -10/Exiles | Aligned with FarCom system 574 | -10/Exiles | Given EX-Vault access code 582 | -10/Exiles | Opened EX-Vault 584 | -10/Exiles | Found Longsword +1 594 | -10/Exiles | Warned to stay clear of 0b10 Research branches 599 | -10/Exiles | Exiles lab attacked by MAIN.C 621 | -10/Exiles | Discovered new exit (range 14) 625 | -10/Exiles | Left Exiles lab with Longsword +1 625 | -10/Exiles | Entered Mines 738 | -9/Mines | Assembled infested the area 743 | -9/Mines | Assisted by a Guerilla fighting off Assembled 796 | -9/Mines | Core integrity fell below 20% 797 | -9/Mines | Received a Rocket Launcher from a helpful Derelict 819 | -9/Mines | Destroyed by as-66712 with Assembled Blade Last Messages --------------- 00793_ XX-LRP(g): "They are crazy." 00794_ XX-LRP(g): "Everyone knows a good old rocket launcher goes a long way." 00795_ XX-LRP(g): "Need to get rid of a swarm? Done. Need a big hole in the wall? Done." 00795_ XX-LRP(g) knocked back. 00795_ as-49535 destroyed. 00796_ XX-LRP(g): "Need a small hole in the wall? Leave that to the mining laser wimps, I say!" 00797_ XX-LRP(g): "Would you like a rocket launcher? I know I would if I were you, so I'm going to lend you mine." 00797_ XX-LRP(g) slips back into the shadows. 00797_ Destroyed Asb. Heavy Rifle. 00799_ as-95617 destroyed. 00802_ Flight Unit destroyed. 00805_ Destroyed Asb. Hover Unit. 00805_ as-67660 destroyed. 00807_ as-80847 destroyed. 00819_ Lgt. Ion Engine destroyed. Map ----- +----------------------------------------------------+ | | | | | | | ????????????????????????????????? | | ????????????????????????????????? | | ????????????????????????????????? | | ????????????????????????????????? | | ????????? ?????????????????????? | | ????????? ?????????????????????? | | ????????? ?????????????????????? | | ????????? #???????????########## | | ????????? #???????????# | | ?????# ## #####???????# ######## | | ?????# #???????# #??????? | | ??????### ### #???????# #??????? | | ????????#a!#?# ######### ######## | | ????????#%*#?# | | ????#####=%#?###### ######## ### | | ????# a #??????? #?????## #?? | | ????# ### #???????# #???#### ### | | ????# #?#a ###?????# #?#### ### | | ???##%### ##????#d##### # | | ??## ] #???##d#### | | ??# #?### "## | | ??# a a #### | | ??# @ ##?# =! | | ??# %######## *% |% | | ??# ##????#" ### * % | | ??## ##????## ##?## | | ???# #????## ##??## | | ???# ###### ##?## ## | | ???# ### #### # | | ???# #?## ## | | ???######### #?## ## | | ???????????## #### ##?## | | ????????????####??#######??## ## | | ???????????????????????????## ## | | ???????????????????????????## ## | | ???????????????????????????## ## | | ????????????????????#####??## ## | | ???????????????????######??## ## | | ??????????????????#### #### ## | | ??????????????????### ### | | ??????????????????## ! ## | | ??????????????????## %% ## | | ?????????????????### ####### | | ????????????????### ######### | | ????????????????## ###??????? | | ????????????????## ??????????? | | ????????????????### ????????????? | +----------------------------------------------------+ Best States ------------- Heat Dissipation 25 Energy Generation 10 Energy Capacity 125 Matter Stores 300 Matter Capacity 300 Sight Range 16 Terrain Scan Density 10 Additional Mass Support 6 Evasion (%) 62 Recoil Reduction 2 Item Schematics ----------------- None Robot Schematics ------------------ None Fabricated ------------ Nothing Repaired ---------- Nothing Studied --------- None Alien Tech Used ----------------- None Achievements -------------- None Challenges ------------ None Game ------ Seed PitchforkPhysicsLoader Manual? 0 Play Time 00:23:33 Cumulative 19.2 hours Start 2026.08.25 @ 16:09:51 End 2026.08.25 @ 19:49:12 Sessions 3 Manual Loads 0 Difficulty Rogue Special Mode None Game No. 27 Rogue 27 Adventurer 0 Explorer 0 Win Type - Total 0 Types 0/0/0/0/0/0/0/0/0/0 Lore% 13 Gallery% 18 Achievement% 18 Wizard Run 0 Options --------- Layout 2 ASCII 0 Keyboard 0 Movement Mouse Keybinds 0 Fullscreen 1 Font 16/SmallcapsGlow Map View 55x47 Zoom Use 0% Tactical HUD 1 Map Filters NONE Filters NONE Steam X RUN: 43186be3-d782-43c1-8e5b-8c4fc47bbd39